[Event "Titled Tuesday Blitz January 25 2022"]
[White "De Silva, L M S T"]
[Black "Timofeev, Artyom"]
[WhiteFideId "9953698"]
[BlackFideId "4140419"]
[WhiteElo "1631"]
[BlackElo "2583"]
[Result "1-0"]
[Round "11"]
[TimeControl "180+1"]
[Date "2022.01.26"]
[WhiteClock "0:00:17"]
[BlackClock "0:00:08"]

1. e4 {[%clk 0:02:54]}  c5 {[%clk 0:02:59]} 2. Nf3 {[%clk 0:02:53]}  d6 {[%clk 0:02:59]} 3. d4 {[%clk 0:02:53]}  cxd4 {[%clk 0:02:59]} 4. Nxd4 {[%clk 0:02:54]}  Nf6 {[%clk 0:02:59]} 5. Nc3 {[%clk 0:02:55]}  Nc6 {[%clk 0:02:59]} 6. Nde2 {[%clk 0:02:52]}  g6 {[%clk 0:02:57]} 7. g3 {[%clk 0:02:53]}  Bg7 {[%clk 0:02:55]} 8. Bg2 {[%clk 0:02:53]}  Rb8 {[%clk 0:02:33]} 9. a4 {[%clk 0:02:46]}  O-O {[%clk 0:02:32]} 10. O-O {[%clk 0:02:46]}  a6 {[%clk 0:02:32]} 11. h3 {[%clk 0:02:46]}  b5 {[%clk 0:02:32]} 12. axb5 {[%clk 0:02:47]}  axb5 {[%clk 0:02:33]} 13. Be3 {[%clk 0:02:46]}  Nd7 {[%clk 0:02:32]} 14. Nd4 {[%clk 0:02:45]}  Bxd4 {[%clk 0:02:23]} 15. Bxd4 {[%clk 0:02:46]}  b4 {[%clk 0:02:23]} 16. Nd5 {[%clk 0:02:44]}  e6 {[%clk 0:02:23]} 17. Ne3 {[%clk 0:02:32]}  Qc7 {[%clk 0:02:21]} 18. b3 {[%clk 0:02:28]}  Nxd4 {[%clk 0:02:02]} 19. Qxd4 {[%clk 0:02:29]}  Bb7 {[%clk 0:02:02]} 20. Rfd1 {[%clk 0:02:27]}  Nc5 {[%clk 0:02:00]} 21. Ng4 {[%clk 0:02:07]}  e5 {[%clk 0:02:00]} 22. Qxd6 {[%clk 0:02:07]}  Qxd6 {[%clk 0:01:58]} 23. Rxd6 {[%clk 0:02:08]}  Kg7 {[%clk 0:01:51]} 24. Nxe5 {[%clk 0:02:06]}  Bxe4 {[%clk 0:01:49]} 25. Bxe4 {[%clk 0:02:00]}  Nxe4 {[%clk 0:01:49]} 26. Rd7 {[%clk 0:02:00]}  Rb5 {[%clk 0:01:43]} 27. Nd3 {[%clk 0:01:55]}  Nf6 {[%clk 0:01:27]} 28. Rd4 {[%clk 0:01:46]}  Rfb8 {[%clk 0:01:24]} 29. Ra7 {[%clk 0:01:40]}  Nd5 {[%clk 0:01:12]} 30. Nf4 {[%clk 0:01:39]}  Nxf4 {[%clk 0:01:02]} 31. Rxf4 {[%clk 0:01:40]}  R8b7 {[%clk 0:01:03]} 32. Rxb7 {[%clk 0:01:37]}  Rxb7 {[%clk 0:01:03]} 33. Kf1 {[%clk 0:01:37]}  g5 {[%clk 0:01:03]} 34. Rc4 {[%clk 0:01:36]}  Kf6 {[%clk 0:01:00]} 35. Ke2 {[%clk 0:01:35]}  Ke6 {[%clk 0:00:59]} 36. Kf3 {[%clk 0:01:35]}  f5 {[%clk 0:00:58]} 37. g4 {[%clk 0:01:35]}  fxg4+ {[%clk 0:00:53]} 38. Kxg4 {[%clk 0:01:35]}  h6 {[%clk 0:00:52]} 39. Rc6+ {[%clk 0:01:35]}  Ke5 {[%clk 0:00:50]} 40. Rxh6 {[%clk 0:01:34]}  Rc7 {[%clk 0:00:50]} 41. Rb6 {[%clk 0:01:29]}  Rxc2 {[%clk 0:00:50]} 42. Rxb4 {[%clk 0:01:25]}  Rxf2 {[%clk 0:00:50]} 43. Kxg5 {[%clk 0:01:25]}  Rg2+ {[%clk 0:00:50]} 44. Rg4 {[%clk 0:01:25]}  Rb2 {[%clk 0:00:48]} 45. b4 {[%clk 0:01:25]}  Ke6 {[%clk 0:00:48]} 46. Kg6 {[%clk 0:01:20]}  Ke7 {[%clk 0:00:43]} 47. h4 {[%clk 0:01:19]}  Kf8 {[%clk 0:00:43]} 48. Kh7 {[%clk 0:01:02]}  Kf7 {[%clk 0:00:28]} 49. Rf4+ {[%clk 0:01:02]}  Ke6 {[%clk 0:00:28]} 50. h5 {[%clk 0:00:57]}  Rg2 {[%clk 0:00:25]} 51. h6 {[%clk 0:00:54]}  Rg5 {[%clk 0:00:23]} 52. Rf1 {[%clk 0:00:49]}  Ke7 {[%clk 0:00:23]} 53. Rb1 {[%clk 0:00:45]}  Kf6 {[%clk 0:00:19]} 54. b5 {[%clk 0:00:38]}  Rd5 {[%clk 0:00:19]} 55. Rf1+ {[%clk 0:00:31]}  Kg5 {[%clk 0:00:19]} 56. Rg1+ {[%clk 0:00:23]}  Kf6 {[%clk 0:00:19]} 57. b6 {[%clk 0:00:17]}  Rb5 {[%clk 0:00:18]} 58. Rg6+ {[%clk 0:00:16]}  Kf7 {[%clk 0:00:19]} 59. b7 {[%clk 0:00:16]}  Rb1 {[%clk 0:00:11]} 60. Rg8 {[%clk 0:00:17]}  Rxb7 {[%clk 0:00:08]} 61. Rg7+ {[%clk 0:00:17]}  Kf8 {[%clk 0:00:08]} 62. Rxb7 {[%clk 0:00:17]} 1-0


[Site "https://www.chess.com"]

[Event "Titled Tuesday Blitz January 25 2022"]
[White "Deac, Bogdan-Daniel"]
[Black "Nakamura, Hikaru"]
[WhiteFideId "1226380"]
[BlackFideId "2016192"]
[WhiteElo "2646"]
[BlackElo "2850"]
[Result "0-1"]
[Round "11"]
[TimeControl "180+1"]
[Date "2022.01.26"]
[WhiteClock "0:00:07"]
[BlackClock "0:00:29"]

1. e4 {[%clk 0:03:00]}  e5 {[%clk 0:03:00]} 2. Nf3 {[%clk 0:03:00]}  Nc6 {[%clk 0:03:01]} 3. Bb5 {[%clk 0:03:01]}  Nf6 {[%clk 0:03:01]} 4. O-O {[%clk 0:03:00]}  Nxe4 {[%clk 0:03:02]} 5. Re1 {[%clk 0:03:01]}  Nd6 {[%clk 0:03:02]} 6. Nxe5 {[%clk 0:03:01]}  Be7 {[%clk 0:03:02]} 7. Bf1 {[%clk 0:03:02]}  Nxe5 {[%clk 0:03:03]} 8. Rxe5 {[%clk 0:03:02]}  O-O {[%clk 0:03:04]} 9. Nc3 {[%clk 0:03:02]}  Ne8 {[%clk 0:03:03]} 10. Nd5 {[%clk 0:03:02]}  Bd6 {[%clk 0:03:03]} 11. Re1 {[%clk 0:03:01]}  c6 {[%clk 0:03:03]} 12. Ne3 {[%clk 0:03:01]}  Be7 {[%clk 0:03:03]} 13. c4 {[%clk 0:03:00]}  Nc7 {[%clk 0:03:00]} 14. d4 {[%clk 0:03:00]}  d5 {[%clk 0:03:00]} 15. cxd5 {[%clk 0:03:01]}  Bb4 {[%clk 0:02:59]} 16. Bd2 {[%clk 0:03:01]}  Bxd2 {[%clk 0:02:59]} 17. Qxd2 {[%clk 0:03:01]}  Nxd5 {[%clk 0:02:59]} 18. Nxd5 {[%clk 0:03:01]}  Qxd5 {[%clk 0:02:59]} 19. Re5 {[%clk 0:03:01]}  Qd6 {[%clk 0:02:58]} 20. Bc4 {[%clk 0:03:00]}  Bd7 {[%clk 0:02:55]} 21. Rae1 {[%clk 0:03:00]}  b5 {[%clk 0:02:51]} 22. Bb3 {[%clk 0:02:59]}  a5 {[%clk 0:02:51]} 23. a3 {[%clk 0:02:00]}  a4 {[%clk 0:02:50]} 24. Ba2 {[%clk 0:02:00]}  Rad8 {[%clk 0:02:49]} 25. Qc3 {[%clk 0:01:29]}  Rfe8 {[%clk 0:02:27]} 26. Qf3 {[%clk 0:01:10]}  Be6 {[%clk 0:01:44]} 27. Bxe6 {[%clk 0:01:03]}  Rxe6 {[%clk 0:01:44]} 28. Rxe6 {[%clk 0:00:58]}  fxe6 {[%clk 0:01:45]} 29. h3 {[%clk 0:00:57]}  Rf8 {[%clk 0:01:38]} 30. Qe4 {[%clk 0:00:53]}  Rf4 {[%clk 0:01:32]} 31. Qxe6+ {[%clk 0:00:47]}  Qxe6 {[%clk 0:01:33]} 32. Rxe6 {[%clk 0:00:46]}  Rxd4 {[%clk 0:01:33]} 33. Rxc6 {[%clk 0:00:47]}  Rd1+ {[%clk 0:01:33]} 34. Kh2 {[%clk 0:00:46]}  Rd2 {[%clk 0:01:34]} 35. b3 {[%clk 0:00:26]}  axb3 {[%clk 0:01:22]} 36. Rc3 {[%clk 0:00:25]}  Rb2 {[%clk 0:01:07]} 37. Rc5 {[%clk 0:00:22]}  b4 {[%clk 0:00:48]} 38. a4 {[%clk 0:00:13]}  Rc2 {[%clk 0:00:36]} 39. Rb5 {[%clk 0:00:07]}  Rc4 {[%clk 0:00:36]} 40. a5 {[%clk 0:00:07]}  b2 {[%clk 0:00:34]} 41. a6 {[%clk 0:00:07]}  b1=Q {[%clk 0:00:31]} 42. a7 {[%clk 0:00:07]}  Rc8 {[%clk 0:00:29]} 43. Rb8 {[%clk 0:00:07]}  Qc1 {[%clk 0:00:28]} 44. a8=Q {[%clk 0:00:07]}  Qf4+ {[%clk 0:00:28]} 45. g3 {[%clk 0:00:07]}  Qxb8 {[%clk 0:00:29]} 0-1


[Site "https://www.chess.com"]

[Event "Titled Tuesday Blitz January 25 2022"]
[White "Dilmukhametov, Artur"]
[Black "Ambartsumova, Karina"]
[WhiteFideId "24179922"]
[BlackFideId "4166299"]
[WhiteElo "2266"]
[BlackElo "2262"]
[Result "1-0"]
[Round "11"]
[TimeControl "180+1"]
[Date "2022.01.26"]
[WhiteClock "0:00:41"]
[BlackClock "0:00:03"]

1. d4 {[%clk 0:02:51]}  Nf6 {[%clk 0:02:59]} 2. Nc3 {[%clk 0:02:52]}  d5 {[%clk 0:02:59]} 3. Bf4 {[%clk 0:02:52]}  g6 {[%clk 0:02:58]} 4. Nf3 {[%clk 0:02:44]}  Bg7 {[%clk 0:02:58]} 5. Qd2 {[%clk 0:02:44]}  O-O {[%clk 0:02:34]} 6. Bh6 {[%clk 0:02:42]}  c5 {[%clk 0:02:28]} 7. Bxg7 {[%clk 0:02:39]}  Kxg7 {[%clk 0:02:28]} 8. dxc5 {[%clk 0:02:39]}  Qa5 {[%clk 0:02:26]} 9. e4 {[%clk 0:02:37]}  Qxc5 {[%clk 0:02:06]} 10. exd5 {[%clk 0:02:35]}  Rd8 {[%clk 0:01:55]} 11. O-O-O {[%clk 0:02:34]}  Bf5 {[%clk 0:01:50]} 12. Bd3 {[%clk 0:02:25]}  Bxd3 {[%clk 0:01:45]} 13. Qxd3 {[%clk 0:02:22]}  Qxf2 {[%clk 0:01:42]} 14. Rd2 {[%clk 0:02:18]}  Qc5 {[%clk 0:01:39]} 15. Re1 {[%clk 0:02:08]}  Na6 {[%clk 0:01:33]} 16. Ne4 {[%clk 0:02:06]}  Qa5 {[%clk 0:01:25]} 17. Nxf6 {[%clk 0:02:03]}  exf6 {[%clk 0:01:24]} 18. a3 {[%clk 0:01:58]}  Nb4 {[%clk 0:01:10]} 19. Qb3 {[%clk 0:01:41]}  Nxd5 {[%clk 0:01:09]} 20. Red1 {[%clk 0:01:36]}  Nf4 {[%clk 0:01:05]} 21. Qxb7 {[%clk 0:01:31]}  Rab8 {[%clk 0:00:57]} 22. Qe4 {[%clk 0:01:18]}  Qb6 {[%clk 0:00:40]} 23. b3 {[%clk 0:01:10]}  Ne6 {[%clk 0:00:35]} 24. Rxd8 {[%clk 0:01:02]}  Rxd8 {[%clk 0:00:35]} 25. Rxd8 {[%clk 0:01:02]}  Qxd8 {[%clk 0:00:36]} 26. Qe3 {[%clk 0:01:01]}  Qa5 {[%clk 0:00:35]} 27. Kb2 {[%clk 0:01:01]}  h5 {[%clk 0:00:34]} 28. Nd2 {[%clk 0:01:00]}  Qe5+ {[%clk 0:00:26]} 29. Qxe5 {[%clk 0:01:00]}  fxe5 {[%clk 0:00:27]} 30. c4 {[%clk 0:01:01]}  f5 {[%clk 0:00:24]} 31. b4 {[%clk 0:01:01]}  e4 {[%clk 0:00:23]} 32. Kc3 {[%clk 0:01:01]}  Kf6 {[%clk 0:00:23]} 33. c5 {[%clk 0:01:01]}  Ke5 {[%clk 0:00:21]} 34. Kc4 {[%clk 0:00:56]}  e3 {[%clk 0:00:17]} 35. Nf3+ {[%clk 0:00:56]}  Ke4 {[%clk 0:00:14]} 36. b5 {[%clk 0:00:57]}  e2 {[%clk 0:00:14]} 37. b6 {[%clk 0:00:57]}  Nd4 {[%clk 0:00:14]} 38. Ne1 {[%clk 0:00:56]}  axb6 {[%clk 0:00:15]} 39. cxb6 {[%clk 0:00:56]}  Ke3 {[%clk 0:00:13]} 40. b7 {[%clk 0:00:54]}  Nc6 {[%clk 0:00:14]} 41. Kc5 {[%clk 0:00:51]}  Nb8 {[%clk 0:00:14]} 42. a4 {[%clk 0:00:49]}  Kf2 {[%clk 0:00:14]} 43. Nd3+ {[%clk 0:00:48]}  Kxg2 {[%clk 0:00:14]} 44. a5 {[%clk 0:00:44]}  Kf1 {[%clk 0:00:13]} 45. Kb6 {[%clk 0:00:42]}  f4 {[%clk 0:00:14]} 46. a6 {[%clk 0:00:42]}  f3 {[%clk 0:00:14]} 47. a7 {[%clk 0:00:43]}  f2 {[%clk 0:00:13]} 48. axb8=Q {[%clk 0:00:40]}  e1=Q {[%clk 0:00:14]} 49. Nxe1 {[%clk 0:00:38]}  fxe1=Q {[%clk 0:00:15]} 50. Qf4+ {[%clk 0:00:39]}  Kg2 {[%clk 0:00:13]} 51. Qg3+ {[%clk 0:00:37]}  Qxg3 {[%clk 0:00:13]} 52. hxg3 {[%clk 0:00:38]}  Kxg3 {[%clk 0:00:10]} 53. b8=Q+ {[%clk 0:00:39]}  Kg4 {[%clk 0:00:10]} 54. Qc8+ {[%clk 0:00:39]}  Kf4 {[%clk 0:00:10]} 55. Qf8+ {[%clk 0:00:38]}  Kg4 {[%clk 0:00:10]} 56. Qc8+ {[%clk 0:00:37]}  Kf4 {[%clk 0:00:10]} 57. Qc4+ {[%clk 0:00:38]}  Kf5 {[%clk 0:00:07]} 58. Qf7+ {[%clk 0:00:38]}  Kg5 {[%clk 0:00:07]} 59. Kc5 {[%clk 0:00:39]}  h4 {[%clk 0:00:08]} 60. Kd4 {[%clk 0:00:40]}  h3 {[%clk 0:00:08]} 61. Ke3 {[%clk 0:00:39]}  h2 {[%clk 0:00:04]} 62. Qf4+ {[%clk 0:00:40]}  Kh5 {[%clk 0:00:03]} 63. Qxh2+ {[%clk 0:00:41]} 1-0


[Site "https://www.chess.com"]

[Event "Titled Tuesday Blitz January 25 2022"]
[White "Donchenko, Alexander"]
[Black "Sanal, Vahap"]
[WhiteFideId "24603295"]
[BlackFideId "6300545"]
[WhiteElo "2539"]
[BlackElo "2603"]
[Result "0-1"]
[Round "11"]
[TimeControl "180+1"]
[Date "2022.01.26"]
[WhiteClock "0:00:56"]
[BlackClock "0:00:35"]

1. c4 {[%clk 0:02:59]}  Nf6 {[%clk 0:02:58]} 2. g3 {[%clk 0:02:59]}  g6 {[%clk 0:02:58]} 3. Bg2 {[%clk 0:03:00]}  Bg7 {[%clk 0:02:59]} 4. Nc3 {[%clk 0:03:00]}  O-O {[%clk 0:03:00]} 5. d4 {[%clk 0:03:00]}  d6 {[%clk 0:03:00]} 6. Nf3 {[%clk 0:03:00]}  c6 {[%clk 0:03:01]} 7. O-O {[%clk 0:03:01]}  Qb6 {[%clk 0:03:02]} 8. b3 {[%clk 0:02:59]}  e5 {[%clk 0:03:01]} 9. Bb2 {[%clk 0:02:57]}  e4 {[%clk 0:03:01]} 10. Ne1 {[%clk 0:02:56]}  d5 {[%clk 0:03:02]} 11. Rb1 {[%clk 0:02:33]}  Re8 {[%clk 0:02:59]} 12. Nc2 {[%clk 0:02:32]}  Be6 {[%clk 0:02:56]} 13. Ne3 {[%clk 0:02:31]}  Nbd7 {[%clk 0:02:56]} 14. cxd5 {[%clk 0:02:29]}  cxd5 {[%clk 0:02:55]} 15. Qd2 {[%clk 0:02:29]}  h5 {[%clk 0:02:52]} 16. Na4 {[%clk 0:02:26]}  Qd6 {[%clk 0:02:45]} 17. Rbc1 {[%clk 0:02:24]}  b6 {[%clk 0:02:42]} 18. Nc3 {[%clk 0:02:23]}  a6 {[%clk 0:02:40]} 19. Nb1 {[%clk 0:01:59]}  h4 {[%clk 0:02:37]} 20. Ba3 {[%clk 0:01:59]}  Qb8 {[%clk 0:02:37]} 21. Rc6 {[%clk 0:01:56]}  h3 {[%clk 0:02:33]} 22. Bh1 {[%clk 0:01:56]}  Qd8 {[%clk 0:02:05]} 23. Rfc1 {[%clk 0:01:53]}  Bh6 {[%clk 0:02:05]} 24. Bd6 {[%clk 0:01:42]}  Ng4 {[%clk 0:01:59]} 25. Bc7 {[%clk 0:01:29]}  Qe7 {[%clk 0:01:48]} 26. Bd6 {[%clk 0:01:29]}  Qd8 {[%clk 0:01:38]} 27. Bc7 {[%clk 0:01:29]}  Qe7 {[%clk 0:01:17]} 28. Bd6 {[%clk 0:01:30]}  Bxe3 {[%clk 0:00:48]} 29. Qxe3 {[%clk 0:01:28]}  Nxe3 {[%clk 0:00:42]} 30. Bxe7 {[%clk 0:01:28]}  Nf5 {[%clk 0:00:42]} 31. Rxe6 {[%clk 0:00:57]}  fxe6 {[%clk 0:00:41]} 32. Bg5 {[%clk 0:00:57]}  Nxd4 {[%clk 0:00:39]} 33. Re1 {[%clk 0:00:58]}  Rac8 {[%clk 0:00:37]} 34. Be3 {[%clk 0:00:56]}  Nc2 {[%clk 0:00:35]} 0-1


[Site "https://www.chess.com"]

[Event "Titled Tuesday Blitz January 25 2022"]
[White "Fiorito, Fabian"]
[Black "Poliannikov, Danila"]
[WhiteFideId "100200"]
[BlackFideId "30935245"]
[WhiteElo "2395"]
[BlackElo "2548"]
[Result "0-1"]
[Round "11"]
[TimeControl "180+1"]
[Date "2022.01.26"]
[WhiteClock "0:00:06"]
[BlackClock "0:00:47"]

1. Nf3 {[%clk 0:03:00]}  Nf6 {[%clk 0:03:00]} 2. g3 {[%clk 0:03:00]}  c5 {[%clk 0:03:00]} 3. Bg2 {[%clk 0:02:58]}  g6 {[%clk 0:03:00]} 4. O-O {[%clk 0:02:58]}  Bg7 {[%clk 0:03:00]} 5. c4 {[%clk 0:02:58]}  O-O {[%clk 0:03:00]} 6. Nc3 {[%clk 0:02:59]}  Nc6 {[%clk 0:02:59]} 7. d4 {[%clk 0:02:58]}  cxd4 {[%clk 0:02:59]} 8. Nxd4 {[%clk 0:02:57]}  d6 {[%clk 0:02:59]} 9. Nxc6 {[%clk 0:02:53]}  bxc6 {[%clk 0:03:00]} 10. Bxc6 {[%clk 0:02:52]}  Rb8 {[%clk 0:03:00]} 11. Rb1 {[%clk 0:02:20]}  Qa5 {[%clk 0:02:57]} 12. Bd2 {[%clk 0:01:49]}  Qh5 {[%clk 0:02:43]} 13. Bg2 {[%clk 0:01:43]}  Bh3 {[%clk 0:02:37]} 14. Re1 {[%clk 0:01:25]}  Ng4 {[%clk 0:02:29]} 15. Bf3 {[%clk 0:01:23]}  Qc5 {[%clk 0:02:13]} 16. Bxg4 {[%clk 0:01:11]}  Bxg4 {[%clk 0:02:11]} 17. b3 {[%clk 0:01:10]}  Bd4 {[%clk 0:01:53]} 18. Na4 {[%clk 0:00:21]}  Bxf2+ {[%clk 0:01:41]} 19. Kg2 {[%clk 0:00:18]}  Qh5 {[%clk 0:01:36]} 20. Kxf2 {[%clk 0:00:18]}  Qxh2+ {[%clk 0:01:36]} 21. Ke3 {[%clk 0:00:16]}  Qxg3+ {[%clk 0:01:36]} 22. Kd4 {[%clk 0:00:17]}  e5+ {[%clk 0:01:30]} 23. Kd5 {[%clk 0:00:17]}  Be6+ {[%clk 0:01:02]} 24. Kxd6 {[%clk 0:00:17]}  Rbc8 {[%clk 0:00:55]} 25. Ke7 {[%clk 0:00:06]}  Qh4+ {[%clk 0:00:49]} 26. Kd6 {[%clk 0:00:05]}  Qd4+ {[%clk 0:00:47]} 27. Ke7 {[%clk 0:00:06]}  Qd8# {[%clk 0:00:47]} 0-1


[Site "https://www.chess.com"]

[Event "Titled Tuesday Blitz January 25 2022"]
[White "Hakemi, Arman"]
[Black "Pakleza, Zbigniew"]
[WhiteFideId "22520805"]
[BlackFideId "1119290"]
[WhiteElo "2208"]
[BlackElo "2467"]
[Result "1-0"]
[Round "11"]
[TimeControl "180+1"]
[Date "2022.01.26"]
[WhiteClock "0:00:47"]
[BlackClock "0:00:13"]

1. e4 {[%clk 0:03:00]}  d6 {[%clk 0:02:56]} 2. d4 {[%clk 0:03:00]}  Nf6 {[%clk 0:02:57]} 3. Nc3 {[%clk 0:02:59]}  c6 {[%clk 0:02:56]} 4. f4 {[%clk 0:02:56]}  Qb6 {[%clk 0:02:55]} 5. Nf3 {[%clk 0:02:21]}  Bg4 {[%clk 0:02:55]} 6. Be2 {[%clk 0:02:16]}  Bxf3 {[%clk 0:02:54]} 7. Bxf3 {[%clk 0:02:17]}  e5 {[%clk 0:02:54]} 8. Ne2 {[%clk 0:02:05]}  Nbd7 {[%clk 0:02:53]} 9. c3 {[%clk 0:02:04]}  Be7 {[%clk 0:02:46]} 10. O-O {[%clk 0:02:03]}  O-O {[%clk 0:02:45]} 11. Kh1 {[%clk 0:02:01]}  Rfe8 {[%clk 0:02:45]} 12. fxe5 {[%clk 0:01:52]}  dxe5 {[%clk 0:02:44]} 13. Bg5 {[%clk 0:01:53]}  Bf8 {[%clk 0:02:36]} 14. Ng3 {[%clk 0:01:51]}  Rad8 {[%clk 0:02:19]} 15. Nf5 {[%clk 0:01:46]}  h6 {[%clk 0:02:05]} 16. Bh4 {[%clk 0:01:34]}  g6 {[%clk 0:01:54]} 17. Ne3 {[%clk 0:01:05]}  Bg7 {[%clk 0:01:41]} 18. d5 {[%clk 0:00:56]}  Qxe3 {[%clk 0:01:33]} 19. Bf2 {[%clk 0:00:48]}  Qg5 {[%clk 0:01:08]} 20. h4 {[%clk 0:00:48]}  Qf4 {[%clk 0:01:03]} 21. g3 {[%clk 0:00:48]}  Qxf3+ {[%clk 0:01:03]} 22. Qxf3 {[%clk 0:00:49]}  cxd5 {[%clk 0:01:04]} 23. exd5 {[%clk 0:00:49]}  e4 {[%clk 0:01:03]} 24. Qe2 {[%clk 0:00:48]}  e3 {[%clk 0:00:47]} 25. Bg1 {[%clk 0:00:48]}  Nxd5 {[%clk 0:00:47]} 26. Rad1 {[%clk 0:00:49]}  N5b6 {[%clk 0:00:33]} 27. Bxe3 {[%clk 0:00:49]}  Rc8 {[%clk 0:00:23]} 28. Qf2 {[%clk 0:00:48]}  f5 {[%clk 0:00:19]} 29. Bxb6 {[%clk 0:00:46]}  Nxb6 {[%clk 0:00:20]} 30. Qf3 {[%clk 0:00:47]}  Rc7 {[%clk 0:00:19]} 31. h5 {[%clk 0:00:47]}  gxh5 {[%clk 0:00:16]} 32. Qxf5 {[%clk 0:00:48]}  Rce7 {[%clk 0:00:14]} 33. Qxh5 {[%clk 0:00:48]}  Nd7 {[%clk 0:00:13]} 34. Rxd7 {[%clk 0:00:47]} 1-0


[Site "https://www.chess.com"]

[Event "Titled Tuesday Blitz January 25 2022"]
[White "Hoghmrtsyan, Artur"]
[Black "Punin, Andrii"]
[WhiteFideId "13306685"]
[BlackFideId "14112639"]
[WhiteElo "2620"]
[BlackElo "2357"]
[Result "0-1"]
[Round "11"]
[TimeControl "180+1"]
[Date "2022.01.26"]
[WhiteClock "0:00:27"]
[BlackClock "0:00:29"]

1. e4 {[%clk 0:03:00]}  c6 {[%clk 0:02:59]} 2. d4 {[%clk 0:03:00]}  d5 {[%clk 0:02:59]} 3. Nc3 {[%clk 0:03:00]}  dxe4 {[%clk 0:02:59]} 4. Nxe4 {[%clk 0:03:01]}  Bf5 {[%clk 0:02:59]} 5. Ng3 {[%clk 0:03:01]}  Bg6 {[%clk 0:03:00]} 6. Nh3 {[%clk 0:03:01]}  Nf6 {[%clk 0:02:59]} 7. Nf4 {[%clk 0:03:01]}  e6 {[%clk 0:02:58]} 8. h4 {[%clk 0:02:58]}  Bd6 {[%clk 0:02:52]} 9. h5 {[%clk 0:02:54]}  Bxf4 {[%clk 0:02:10]} 10. Bxf4 {[%clk 0:02:55]}  Bf5 {[%clk 0:02:10]} 11. Nxf5 {[%clk 0:02:46]}  Qa5+ {[%clk 0:02:09]} 12. Qd2 {[%clk 0:02:43]}  Qxf5 {[%clk 0:02:09]} 13. h6 {[%clk 0:02:42]}  g5 {[%clk 0:01:58]} 14. Be5 {[%clk 0:02:37]}  Ne4 {[%clk 0:01:45]} 15. Qe3 {[%clk 0:02:32]}  f6 {[%clk 0:01:44]} 16. Bxb8 {[%clk 0:02:31]}  Rxb8 {[%clk 0:01:44]} 17. Bd3 {[%clk 0:02:31]}  Qa5+ {[%clk 0:01:43]} 18. c3 {[%clk 0:02:30]}  f5 {[%clk 0:01:36]} 19. Bxe4 {[%clk 0:02:28]}  fxe4 {[%clk 0:01:37]} 20. Qxe4 {[%clk 0:02:28]}  Kd7 {[%clk 0:01:34]} 21. O-O-O {[%clk 0:02:25]}  Qxa2 {[%clk 0:01:32]} 22. Qe5 {[%clk 0:02:12]}  Rhg8 {[%clk 0:01:21]} 23. Qe4 {[%clk 0:01:55]}  Rh8 {[%clk 0:01:17]} 24. Rh5 {[%clk 0:01:51]}  Rbg8 {[%clk 0:01:14]} 25. Re1 {[%clk 0:01:47]}  Rg6 {[%clk 0:01:08]} 26. Rh3 {[%clk 0:01:40]}  Rf8 {[%clk 0:01:03]} 27. Re2 {[%clk 0:01:24]}  Rf4 {[%clk 0:00:58]} 28. Qe5 {[%clk 0:01:21]}  Qa1+ {[%clk 0:00:56]} 29. Kc2 {[%clk 0:01:19]}  Qa4+ {[%clk 0:00:56]} 30. Kd2 {[%clk 0:01:14]}  Qa2 {[%clk 0:00:55]} 31. Ke3 {[%clk 0:00:47]}  Qb1 {[%clk 0:00:40]} 32. Qb8 {[%clk 0:00:38]}  Re4+ {[%clk 0:00:37]} 33. Kf3 {[%clk 0:00:32]}  g4+ {[%clk 0:00:31]} 34. Kg3 {[%clk 0:00:32]}  gxh3+ {[%clk 0:00:32]} 35. Kxh3 {[%clk 0:00:30]}  Qh1+ {[%clk 0:00:30]} 36. Qh2 {[%clk 0:00:27]}  Rh4+ {[%clk 0:00:29]} 0-1


[Site "https://www.chess.com"]

[Event "Titled Tuesday Blitz January 25 2022"]
[White "Ibrahimli, Murad"]
[Black "Rychagov, Andrey"]
[WhiteFideId "13410229"]
[BlackFideId "4119932"]
[WhiteElo "2109"]
[BlackElo "2500"]
[Result "0-1"]
[Round "11"]
[TimeControl "180+1"]
[Date "2022.01.26"]
[WhiteClock "0:01:31"]
[BlackClock "0:00:29"]

1. e4 {[%clk 0:03:00]}  e6 {[%clk 0:02:59]} 2. d4 {[%clk 0:02:59]}  d5 {[%clk 0:02:59]} 3. Nc3 {[%clk 0:03:00]}  Bb4 {[%clk 0:02:58]} 4. e5 {[%clk 0:03:00]}  Qd7 {[%clk 0:02:58]} 5. Bd2 {[%clk 0:02:59]}  b6 {[%clk 0:02:58]} 6. a3 {[%clk 0:02:58]}  Bxc3 {[%clk 0:02:58]} 7. Bxc3 {[%clk 0:02:59]}  Ba6 {[%clk 0:02:58]} 8. Bxa6 {[%clk 0:02:57]}  Nxa6 {[%clk 0:02:58]} 9. Qg4 {[%clk 0:02:57]}  f5 {[%clk 0:02:58]} 10. Qg3 {[%clk 0:02:57]}  Nb8 {[%clk 0:02:53]} 11. Nh3 {[%clk 0:02:57]}  Nc6 {[%clk 0:02:52]} 12. Nf4 {[%clk 0:02:57]}  O-O-O {[%clk 0:02:51]} 13. h4 {[%clk 0:02:57]}  Qf7 {[%clk 0:02:48]} 14. b3 {[%clk 0:02:49]}  Nge7 {[%clk 0:02:46]} 15. Bb2 {[%clk 0:02:50]}  g6 {[%clk 0:02:43]} 16. O-O-O {[%clk 0:02:50]}  h6 {[%clk 0:02:41]} 17. Nh3 {[%clk 0:02:50]}  Rdf8 {[%clk 0:02:38]} 18. f4 {[%clk 0:02:50]}  Qe8 {[%clk 0:02:33]} 19. Qd3 {[%clk 0:02:50]}  Kb7 {[%clk 0:02:32]} 20. Kb1 {[%clk 0:02:45]}  Qd7 {[%clk 0:02:26]} 21. Ng1 {[%clk 0:02:44]}  g5 {[%clk 0:02:13]} 22. hxg5 {[%clk 0:02:41]}  hxg5 {[%clk 0:02:13]} 23. Rxh8 {[%clk 0:02:42]}  Rxh8 {[%clk 0:02:13]} 24. fxg5 {[%clk 0:02:42]}  Ng6 {[%clk 0:02:10]} 25. Bc1 {[%clk 0:02:40]}  Rh1 {[%clk 0:02:06]} 26. Nf3 {[%clk 0:02:39]}  Qh7 {[%clk 0:02:04]} 27. c4 {[%clk 0:02:36]}  Rxd1 {[%clk 0:01:48]} 28. Qxd1 {[%clk 0:02:37]}  Qd7 {[%clk 0:01:48]} 29. Qd2 {[%clk 0:02:16]}  Na5 {[%clk 0:01:35]} 30. Qc3 {[%clk 0:02:15]}  dxc4 {[%clk 0:01:26]} 31. bxc4 {[%clk 0:02:16]}  Qc6 {[%clk 0:01:26]} 32. d5 {[%clk 0:02:03]}  exd5 {[%clk 0:01:26]} 33. Nd4 {[%clk 0:02:03]}  Qxc4 {[%clk 0:01:05]} 34. Qxc4 {[%clk 0:02:03]}  Nxc4 {[%clk 0:01:05]} 35. e6 {[%clk 0:02:03]}  f4 {[%clk 0:01:01]} 36. Ne2 {[%clk 0:01:57]}  Kc6 {[%clk 0:00:52]} 37. Nxf4 {[%clk 0:01:56]}  Nce5 {[%clk 0:00:52]} 38. Nh5 {[%clk 0:01:39]}  Kd6 {[%clk 0:00:50]} 39. Ng7 {[%clk 0:01:40]}  c5 {[%clk 0:00:45]} 40. g3 {[%clk 0:01:39]}  Ke7 {[%clk 0:00:41]} 41. Bf4 {[%clk 0:01:38]}  Nc6 {[%clk 0:00:41]} 42. Be3 {[%clk 0:01:29]}  Nd8 {[%clk 0:00:34]} 43. Kc2 {[%clk 0:01:28]}  Nxe6 {[%clk 0:00:34]} 44. Nf5+ {[%clk 0:01:29]}  Kd7 {[%clk 0:00:34]} 45. Kd3 {[%clk 0:01:30]}  Ne5+ {[%clk 0:00:30]} 46. Ke2 {[%clk 0:01:30]}  d4 {[%clk 0:00:30]} 47. Bf4 {[%clk 0:01:29]}  Ng6 {[%clk 0:00:30]} 48. Kf3 {[%clk 0:01:30]}  Kc6 {[%clk 0:00:29]} 49. Nh4 {[%clk 0:01:30]}  Nexf4 {[%clk 0:00:28]} 50. gxf4 {[%clk 0:01:30]}  Nxh4+ {[%clk 0:00:28]} 51. Kg4 {[%clk 0:01:31]}  d3 {[%clk 0:00:29]} 52. f5 {[%clk 0:01:31]} 0-1


[Site "https://www.chess.com"]